bitfinex/quotes_BTCUSD_20241018
["timestamp","ask_amount","ask_price","bid_price","bid_amount"]
[1729254545220,0.61040451,67731.0,67730.0,0.01807839]
[1729254545685,0.31511751,67731.0,67730.0,0.01807839]
[1729254546122,0.61540751,67731.0,67730.0,0.01807839]
[1729254547252,0.147645,67730.0,67728.0,0.01807839]
[1729254548385,0.147647,67729.0,67728.0,0.01807839]
[1729254549098,0.147645,67730.0,67728.0,0.01807839]
[1729254549322,0.150645,67730.0,67728.0,0.01807839]
[1729254549534,0.150645,67730.0,67729.0,0.01807839]
[1729254549761,0.153645,67730.0,67729.0,0.01807839]
[1729254550627,0.153645,67730.0,67727.0,0.02307839]
[1729254550863,0.006,67730.0,67727.0,0.02307839]
[1729254551069,0.147647,67729.0,67727.0,0.02307839]
[1729254551505,0.150647,67729.0,67727.0,0.02307839]
[1729254551722,0.147649,67728.0,67727.0,0.02307839]
[1729254551942,0.147648,67729.0,67727.0,0.03269689]
[1729254552163,0.147648,67729.0,67727.0,0.02307839]
[1729254552433,0.002,67729.0,67727.0,0.17072939]
[1729254552658,0.002,67729.0,67727.0,0.02307839]
[1729254552881,0.147649,67728.0,67727.0,0.02307839]
[1729254553098,0.149647,67729.0,67727.0,0.03269689]
[1729254553320,0.147649,67728.0,67727.0,0.02307839]
[1729254553562,0.147649,67728.0,67727.0,0.03269699]
[1729254554699,0.149649,67728.0,67727.0,0.03269699]
[1729254555341,0.151649,67728.0,67727.0,0.03269699]
[1729254555773,0.26712204,67728.0,67727.0,0.02769699]
[1729254556025,0.26712204,67728.0,67727.0,0.02307839]
[1729254556708,0.26512204,67728.0,67727.0,0.02307839]
[1729254556925,0.27012204,67728.0,67727.0,0.02307839]
[1729254557136,0.26812204,67728.0,67727.0,0.02307839]
[1729254557357,0.26812204,67728.0,67727.0,0.005]
[1729254557580,0.27312204,67728.0,67727.0,0.005]
[1729254559191,0.27312204,67728.0,67727.0,0.03270393]
[1729254560398,0.27312204,67728.0,67727.0,0.02307839]
[1729254561088,0.27312204,67728.0,67727.0,0.02390539]
[1729254561325,0.27312204,67728.0,67727.0,0.005827]
[1729254561539,0.27312204,67728.0,67727.0,0.19500539]
[1729254561540,0.01,67728.0,67727.0,0.19500539]
[1729254561762,0.01,67728.0,67727.0,0.41857891]
[1729254561976,0.01,67728.0,67727.0,0.27092791]
[1729254562408,0.01,67728.0,67727.0,0.20463338]
[1729254562617,0.005,67728.0,67727.0,0.35228438]
[1729254563041,0.009,67728.0,67727.0,0.35228438]
[1729254563270,0.156649,67728.0,67727.0,0.03353338]
[1729254563713,0.004,67728.0,67727.0,0.03353338]
[1729254564189,0.008,67728.0,67727.0,0.12192608]
[1729254564427,0.004,67728.0,67727.0,0.12192608]
[1729254564841,0.008,67728.0,67727.0,0.12192608]
[1729254565465,0.155649,67728.0,67727.0,0.12192608]
[1729254566328,0.008,67728.0,67727.0,0.12192608]
[1729254566559,0.155649,67728.0,67727.0,0.12192608]
[1729254567204,0.008,67728.0,67727.0,0.12192608]
[1729254567416,0.008,67728.0,67727.0,0.47445742]
[1729254567625,0.008,67728.0,67727.0,0.78400563]
[1729254567882,0.008,67728.0,67727.0,0.53594353]
[1729254568104,0.008,67728.0,67727.0,0.53094353]
[1729254568334,0.147635,67735.0,67734.0,0.005]
[1729254568335,0.147634,67735.0,67734.0,0.005]
[1729254568543,0.147634,67735.0,67734.0,0.07694299]
[1729254568754,0.295263,67737.0,67734.0,0.07694299]
[1729254568755,0.14763,67737.0,67734.0,0.07694299]
[1729254568980,0.14763,67737.0,67736.0,0.01807839]
[1729254569854,0.14763,67737.0,67736.0,0.02307839]
[1729254570954,0.151629,67737.0,67736.0,0.01807839]
[1729254571160,0.155629,67737.0,67736.0,0.01807839]
[1729254571854,0.41072804,67738.0,67734.0,0.005]
[1729254572079,0.147629,67737.0,67736.0,0.01807839]
[1729254572300,0.155629,67737.0,67736.0,0.01807839]
[1729254572989,0.008,67737.0,67736.0,0.01807839]
[1729254573207,0.155629,67737.0,67736.0,0.01807839]
[1729254574063,0.016,67737.0,67736.0,0.01807839]
[1729254574287,0.450888,67737.0,67736.0,0.01807839]
[1729254575159,0.450888,67737.0,67734.0,0.02307839]
[1729254575160,0.147634,67735.0,67734.0,0.02307839]
[1729254575372,0.147634,67735.0,67734.0,0.06731668]
[1729254575586,0.147634,67735.0,67734.0,0.02307839]
[1729254575794,0.147634,67735.0,67734.0,0.03270788]
[1729254576033,0.147634,67735.0,67734.0,0.09906531]
[1729254577376,0.153634,67735.0,67734.0,0.03270788]
[1729254578060,0.159634,67735.0,67734.0,0.03270788]
[1729254578522,0.159634,67735.0,67734.0,0.12118446]
[1729254581839,0.159634,67735.0,67734.0,0.11155497]
[1729254582270,0.159634,67735.0,67734.0,0.12118277]
[1729254584904,0.159634,67735.0,67734.0,0.12127604]
[1729254585362,0.159634,67735.0,67734.0,0.03270619]
[1729254585861,0.159634,67735.0,67734.0,0.03353319]
[1729254587449,0.159634,67735.0,67734.0,0.03353338]
[1729254589690,0.012,67735.0,67734.0,0.03353338]
[1729254589893,0.012,67735.0,67734.0,0.35236938]
[1729254590300,0.012,67735.0,67734.0,0.46308169]
[1729254590799,0.012,67735.0,67734.0,0.35236938]
[1729254591250,0.006,67735.0,67734.0,0.35236938]
[1729254591660,0.006,67735.0,67734.0,0.46406028]
[1729254592722,0.147625,67739.0,67734.0,0.464063]
[1729254592915,0.147625,67739.0,67738.0,0.08449012]
[1729254593124,0.147625,67739.0,67738.0,0.09412083]
[1729254593387,0.147625,67739.0,67738.0,0.08449012]
[1729254594181,0.147625,67739.0,67738.0,0.01807839]
[1729254594391,0.147625,67739.0,67738.0,0.0277085]
[1729254594590,0.147625,67739.0,67738.0,0.01807839]
[1729254594817,0.445876,67739.0,67738.0,0.01807839]
[1729254595699,0.448876,67739.0,67738.0,0.01807839]
[1729254597489,0.448876,67739.0,67738.0,0.0277083]
[1729254599261,0.153625,67739.0,67738.0,0.0941155]
[1729254599711,0.153625,67739.0,67738.0,0.0277083]
[1729254599932,0.153625,67739.0,67738.0,0.01807839]
[1729254600202,0.153625,67739.0,67738.0,0.2710666]
[1729254600203,0.006,67739.0,67738.0,0.2710666]
[1729254600409,0.006,67739.0,67738.0,0.35524581]
[1729254600640,0.006,67739.0,67738.0,0.35429366]
[1729254600868,0.006,67739.0,67738.0,0.35229366]
[1729254601106,0.003,67739.0,67738.0,0.48509355]
[1729254601538,0.003,67739.0,67738.0,0.35429366]
[1729254601989,0.003,67739.0,67738.0,0.35229366]
[1729254602216,0.003,67739.0,67738.0,0.35228906]
[1729254602686,0.149256,67750.0,67749.0,0.005]
[1729254602890,0.149256,67750.0,67749.0,0.02307839]
[1729254603307,0.001654,67750.0,67749.0,0.02307839]
[1729254603517,0.149255,67750.0,67749.0,0.02307839]
[1729254604386,0.150255,67750.0,67749.0,0.02307839]
[1729254604616,0.151255,67750.0,67749.0,0.02307839]
[1729254605895,0.151255,67750.0,67749.0,0.005]
[1729254607733,0.151255,67750.0,67748.0,0.01807839]
[1729254607734,0.227203,67749.0,67748.0,0.01807839]
[1729254609278,0.147603,67749.0,67748.0,0.02307839]
[1729254610180,0.147603,67749.0,67748.0,0.005]
[1729254611072,0.148603,67749.0,67748.0,0.005]
[1729254611307,0.147605,67748.0,67747.0,0.01807839]
[1729254611522,0.26307804,67748.0,67747.0,0.01807839]
[1729254612151,0.11547304,67748.0,67747.0,0.01807839]
[1729254612360,0.55828904,67748.0,67747.0,0.01807839]
[1729254614336,0.41068404,67748.0,67747.0,0.01807839]
[1729254614541,0.55828904,67748.0,67747.0,0.01807839]
[1729254614963,0.73608904,67748.0,67747.0,0.01807839]
[1729254615182,0.85156208,67748.0,67747.0,0.01807839]
[1729254615412,0.58848404,67748.0,67747.0,0.01807839]
[1729254615623,0.73608904,67748.0,67747.0,0.01807839]
[1729254616740,0.74508904,67748.0,67747.0,0.01807839]
[1729254618049,0.75408904,67748.0,67747.0,0.01807839]
[1729254618499,0.60648404,67748.0,67747.0,0.01807839]
[1729254618715,0.75408904,67748.0,67747.0,0.01807839]
[1729254619178,0.86956208,67748.0,67747.0,0.01807839]
[1729254620249,0.75408904,67748.0,67747.0,0.01807839]
[1729254620477,0.8395344,67748.0,67747.0,0.01807839]
[1729254620705,0.147621,67741.0,67740.0,0.01807839]
[1729254620934,0.26309404,67741.0,67740.0,0.01807839]
[1729254621172,0.44089404,67741.0,67740.0,0.01807839]
[1729254621652,0.29327304,67741.0,67739.0,0.01807839]
[1729254621876,0.147623,67740.0,67739.0,0.01807839]
[1729254622107,0.147623,67740.0,67739.0,0.06229976]
[1729254622547,0.67910568,67740.0,67739.0,0.06229976]
[1729254622801,0.325123,67740.0,67739.0,0.01807839]
[1729254624237,0.327123,67740.0,67739.0,0.01807839]
[1729254624685,0.47508215,67740.0,67739.0,0.01807839]
[1729254624919,0.58745519,67740.0,67739.0,0.01807839]
[1729254625153,0.69445519,67740.0,67739.0,0.01807839]
[1729254625602,0.70145519,67740.0,67739.0,0.01807839]
[1729254625863,0.70365519,67740.0,67739.0,0.01807839]
[1729254626319,0.69665519,67740.0,67739.0,0.01807839]
[1729254626538,0.70365519,67740.0,67739.0,0.01807839]
[1729254626771,0.43355915,67740.0,67739.0,0.01807839]
[1729254627001,0.57418215,67740.0,67739.0,0.01807839]
[1729254627233,0.60118215,67740.0,67739.0,0.01807839]
[1729254627468,0.69006781,67740.0,67739.0,0.01807839]
[1729254627949,0.67976781,67740.0,67739.0,0.01807839]
[1729254628404,0.59088215,67740.0,67739.0,0.01807839]
[1729254628853,0.247625,67739.0,67738.0,0.000827]
[1729254629089,0.56388415,67739.0,67738.0,0.000827]
[1729254630231,0.58888415,67739.0,67738.0,0.000827]
[1729254630733,0.70435719,67739.0,67738.0,0.000827]
[1729254630960,1.08463852,67739.0,67738.0,0.000827]
[1729254631200,1.08463852,67739.0,67734.0,0.000827]
[1729254631201,0.65328008,67735.0,67734.0,0.000827]
[1729254631414,0.65328008,67735.0,67734.0,0.01890539]
[1729254631415,0.80223923,67735.0,67734.0,0.01890539]
[1729254631675,0.88566231,67735.0,67734.0,0.01890539]
[1729254631901,0.88566231,67735.0,67727.0,0.000827]
[1729254631902,0.247649,67728.0,67727.0,0.000827]
[1729254632118,0.80225423,67728.0,67727.0,0.000827]
[1729254632341,0.68678119,67728.0,67727.0,0.000827]
[1729254633723,0.69878119,67728.0,67727.0,0.000827]
[1729254633945,0.84774034,67728.0,67727.0,0.000827]
[1729254634166,0.85874034,67728.0,67727.0,0.000827]
[1729254634591,0.97421338,67728.0,67727.0,0.000827]
[1729254635295,0.85874034,67728.0,67727.0,0.000827]
[1729254635548,0.97421338,67728.0,67727.0,0.000827]
[1729254636392,0.97421338,67728.0,67727.0,0.030827]
[1729254636925,0.247653,67726.0,67725.0,0.000827]
[1729254637122,0.56801215,67726.0,67725.0,0.000827]
[1729254638569,0.57701215,67726.0,67725.0,0.000827]
[1729254639663,0.70248519,67726.0,67725.0,0.000827]
[1729254640089,0.81795823,67726.0,67725.0,0.000827]
[1729254640940,0.9760505,67726.0,67725.0,0.000827]
[1729254641201,0.86057746,67726.0,67725.0,0.000827]
[1729254641665,0.9760505,67726.0,67725.0,0.000827]
[1729254642133,0.43734604,67717.0,67716.0,0.22214918]
[1729254642352,0.68630519,67717.0,67716.0,0.22214918]
[1729254642601,0.68630519,67717.0,67716.0,0.000827]
[1729254643502,0.69930519,67717.0,67716.0,0.000827]
[1729254644425,0.58383215,67717.0,67716.0,0.000827]
[1729254645097,0.260673,67717.0,67716.0,0.000827]
[1729254645565,0.013,67717.0,67716.0,0.005827]
[1729254645783,0.013,67717.0,67716.0,0.61868737]
[1729254646011,0.013,67717.0,67716.0,0.66779418]
[1729254646289,0.025,67717.0,67716.0,0.66779418]
[1729254646746,0.36897818,67725.0,67716.0,0.52011918]
[1729254646994,0.147658,67724.0,67717.0,0.170672]
[1729254647179,0.147658,67724.0,67717.0,0.023]
[1729254647430,0.147658,67724.0,67718.0,0.147669]
[1729254647871,0.14766,67723.0,67717.0,0.170672]
[1729254648376,0.51763418,67725.0,67717.0,0.170672]
[1729254648587,0.147663,67722.0,67717.0,0.170672]
[1729254648866,0.14766,67723.0,67717.0,0.170672]
[1729254649753,0.51663418,67725.0,67717.0,0.170672]
[1729254649754,0.003,67724.0,67717.0,0.023]
[1729254649974,0.147667,67720.0,67717.0,0.023]
[1729254650217,0.147665,67721.0,67717.0,0.023]
[1729254651335,0.002,67720.0,67716.0,0.175627]
[1729254651584,0.5318537,67720.0,67719.0,0.005]
[1729254651793,0.147673,67717.0,67716.0,0.005827]
[1729254652020,0.147673,67717.0,67716.0,0.000827]
[1729254652021,0.31520603,67717.0,67716.0,0.000827]
[1729254652242,0.147673,67717.0,67716.0,0.000827]
[1729254652469,0.31520603,67717.0,67716.0,0.000827]
[1729254652703,0.147673,67717.0,67716.0,0.000827]
[1729254654065,0.148673,67717.0,67716.0,0.000827]
[1729254654301,0.149673,67717.0,67716.0,0.000827]
[1729254654519,0.148673,67717.0,67716.0,0.000827]
[1729254654784,0.153673,67717.0,67716.0,0.005827]
[1729254655674,0.152673,67717.0,67716.0,0.005827]
[1729254655881,0.157673,67717.0,67716.0,0.005827]
[1729254660033,0.157673,67717.0,67716.0,0.000827]
[1729254661390,0.26702995,67717.0,67716.0,0.000827]
[1729254661625,0.157673,67717.0,67716.0,0.000827]
[1729254679048,0.27318736,67717.0,67716.0,0.000827]
[1729254679545,0.37318736,67717.0,67716.0,0.000827]
[1729254679783,0.52214651,67717.0,67716.0,0.000827]
[1729254680483,0.40663215,67717.0,67716.0,0.000827]
[1729254680744,0.77191348,67717.0,67716.0,0.000827]
[1729254680978,0.7341913,67717.0,67716.0,0.000827]
[1729254681207,0.58523215,67717.0,67716.0,0.000827]
[1729254681427,0.70074651,67717.0,67716.0,0.000827]
[1729254681915,0.73391377,67717.0,67716.0,0.000827]
[1729254682386,0.76191377,67717.0,67716.0,0.000827]
[1729254682845,0.92087292,67717.0,67716.0,0.000827]
[1729254683059,0.90687292,67717.0,67716.0,0.000827]
[1729254683286,0.92087292,67717.0,67716.0,0.000827]
[1729254683746,0.75791377,67717.0,67716.0,0.000827]
[1729254684203,0.77191377,67717.0,67716.0,0.000827]
[1729254684425,0.75791377,67717.0,67716.0,0.000827]
[1729254684685,0.339873,67717.0,67716.0,0.000827]
[1729254684908,0.175673,67717.0,67716.0,0.000827]
[1729254685145,0.161673,67717.0,67716.0,0.000827]
[1729254685637,0.175673,67717.0,67716.0,0.000827]
[1729254686100,0.80535433,67717.0,67716.0,0.000827]
[1729254686318,0.60803215,67717.0,67716.0,0.000827]
[1729254686774,0.59403215,67717.0,67716.0,0.000827]
[1729254687238,0.60803215,67717.0,67716.0,0.000827]
[1729254687496,0.59403215,67717.0,67716.0,0.000827]
[1729254687966,0.60803215,67717.0,67716.0,0.000827]
[1729254688626,0.59403215,67717.0,67716.0,0.000827]
[1729254688844,0.49403215,67717.0,67716.0,0.000827]
[1729254689065,0.60803215,67717.0,67716.0,0.000827]
[1729254689516,0.59403215,67717.0,67716.0,0.000827]
[1729254689753,0.60803215,67717.0,67716.0,0.000827]
[1729254692718,0.51553215,67717.0,67716.0,0.000827]
[1729254692948,0.361573,67717.0,67716.0,0.000827]
[1729254693384,0.356573,67717.0,67716.0,0.000827]
[1729254694319,0.361573,67717.0,67716.0,0.000827]
[1729254694769,0.50309906,67717.0,67716.0,0.000827]
[1729254694993,0.361573,67717.0,67716.0,0.000827]
[1729254695930,0.52925462,67717.0,67716.0,0.000827]
[1729254696624,0.51525462,67717.0,67716.0,0.000827]
[1729254697082,0.52925462,67717.0,67716.0,0.000827]
[1729254697527,0.51525462,67717.0,67716.0,0.000827]
[1729254697770,0.52925462,67717.0,67716.0,0.000827]
[1729254702054,0.50125462,67717.0,67716.0,0.000827]
[1729254702272,0.55969174,67717.0,67716.0,0.000827]
[1729254702495,0.58769174,67717.0,67716.0,0.000827]
[1729254702720,0.52425462,67717.0,67716.0,0.000827]
[1729254702989,0.44335462,67717.0,67716.0,0.000827]
[1729254703890,0.42935462,67717.0,67716.0,0.000827]
[1729254704341,0.41535462,67717.0,67716.0,0.000827]
[1729254704594,0.247673,67717.0,67716.0,0.000827]
[1729254704828,0.261673,67717.0,67716.0,0.000827]
[1729254705487,0.275673,67717.0,67716.0,0.000827]
[1729254705712,0.261673,67717.0,67716.0,0.000827]
[1729254705961,0.247673,67717.0,67716.0,0.000827]
[1729254706409,0.259673,67717.0,67716.0,0.000827]
[1729254707077,0.268673,67717.0,67716.0,0.000827]
[1729254707289,0.259673,67717.0,67716.0,0.000827]
[1729254707727,0.273673,67717.0,67716.0,0.000827]
[1729254708182,0.273673,67717.0,67716.0,0.005827]
[1729254708183,0.173673,67717.0,67716.0,0.005827]
[1729254708645,0.026,67717.0,67716.0,0.251802]
[1729254708904,0.014,67717.0,67716.0,0.41948362]
[1729254709155,0.014,67717.0,67716.0,0.59738734]
[1729254709391,0.022,67717.0,67716.0,0.42969026]
[1729254709844,0.014,67717.0,67716.0,0.42969026]
[1729254710098,0.14767,67719.0,67716.0,0.27238985]
[1729254710321,0.004,67717.0,67716.0,0.27238985]
[1729254710800,0.013,67717.0,67716.0,0.27238985]
[1729254711248,0.004,67717.0,67716.0,0.28201082]
[1729254711476,0.004,67717.0,67716.0,0.19354797]
[1729254711601,0.152669,67719.0,67716.0,0.19354797]
[1729254711824,0.151669,67719.0,67717.0,0.0663283]
[1729254712255,0.147669,67719.0,67717.0,0.0663283]
[1729254712467,0.147669,67719.0,67718.0,0.04421296]
[1729254712680,0.147669,67719.0,67718.0,0.04421294]
[1729254712885,0.147664,67722.0,67718.0,0.19188194]
[1729254713101,0.22297818,67725.0,67718.0,0.04421309]
[1729254713326,0.147663,67722.0,67718.0,0.19188309]
[1729254713588,0.147667,67720.0,67718.0,0.04421309]
[1729254713769,0.147665,67721.0,67718.0,0.04421309]
[1729254713985,0.295316,67724.0,67718.0,0.04421309]
[1729254713986,0.154669,67719.0,67718.0,0.04421309]
[1729254714193,0.147669,67719.0,67718.0,0.04421309]
[1729254714412,0.147669,67719.0,67717.0,0.04421309]
[1729254715336,0.152669,67719.0,67717.0,0.04421309]
[1729254716461,0.159669,67719.0,67717.0,0.04421309]
[1729254716657,0.152669,67719.0,67717.0,0.04421309]
[1729254717091,0.152669,67719.0,67716.0,0.37581409]
[1729254717536,0.158669,67719.0,67716.0,0.37581409]
[1729254717758,0.158669,67719.0,67716.0,0.331601]
[1729254717997,0.158669,67719.0,67716.0,0.37579122]
[1729254718241,0.147669,67719.0,67716.0,0.22811722]
[1729254718452,0.147665,67721.0,67717.0,0.147672]
[1729254718661,0.004,67719.0,67717.0,0.147672]
[1729254718887,0.151669,67719.0,67716.0,0.22811722]
[1729254719345,0.295316,67724.0,67716.0,0.22811722]
[1729254719575,0.15267,67719.0,67716.0,0.22811722]
[1729254720027,0.147671,67718.0,67716.0,0.22811722]
[1729254720657,0.147671,67718.0,67717.0,0.005]
[1729254720875,0.147667,67720.0,67717.0,0.005]
[1729254721297,0.005,67718.0,67717.0,0.005]
[1729254721491,0.147667,67720.0,67717.0,0.152673]
[1729254721708,0.147667,67720.0,67717.0,0.005]
[1729254721914,0.14767,67719.0,67718.0,0.005]
[1729254723420,0.15367,67719.0,67718.0,0.005]
[1729254724091,0.15367,67719.0,67716.0,0.000827]
[1729254724092,0.147673,67717.0,67716.0,0.005827]
[1729254724557,0.225473,67717.0,67716.0,0.000827]
[1729254725267,0.229473,67717.0,67716.0,0.000827]
[1729254725482,0.234473,67717.0,67716.0,0.000827]
[1729254725711,0.230473,67717.0,67716.0,0.000827]
[1729254725965,0.33890656,67717.0,67716.0,0.000827]
[1729254726221,0.230473,67717.0,67716.0,0.000827]
[1729254726451,0.39815462,67717.0,67716.0,0.000827]
[1729254726673,0.40215462,67717.0,67716.0,0.000827]
[1729254727130,0.66111377,67717.0,67716.0,0.000827]
[1729254727372,0.75321377,67717.0,67716.0,0.000827]
[1729254728042,0.58553215,67717.0,67716.0,0.000827]
[1729254728272,0.57653215,67717.0,67716.0,0.000827]
[1729254728511,0.57753215,67717.0,67716.0,0.000827]
[1729254728736,0.59053215,67717.0,67716.0,0.000827]
[1729254729626,0.75821377,67717.0,67716.0,0.000827]
[1729254731012,0.247677,67715.0,67714.0,0.00078245]
[1729254732358,0.256677,67715.0,67714.0,0.00078245]
[1729254734824,0.267677,67715.0,67714.0,0.00078245]
[1729254736532,0.6480953,67715.0,67714.0,0.00078245]
[1729254737437,0.6530953,67715.0,67714.0,0.00078245]
[1729254739247,0.6580953,67715.0,67714.0,0.00078245]
[1729254739457,0.50913615,67715.0,67714.0,0.00078245]
[1729254740982,0.50413615,67715.0,67714.0,0.00078245]
[1729254742693,0.49913615,67715.0,67714.0,0.00078245]
[1729254742914,0.50413615,67715.0,67714.0,0.00078245]
[1729254743341,0.49913615,67715.0,67714.0,0.00078245]
[1729254743559,0.50413615,67715.0,67714.0,0.00078245]
[1729254743786,0.50079215,67715.0,67714.0,0.00078245]
[1729254744479,0.50579215,67715.0,67714.0,0.00078245]
[1729254745842,0.50079215,67715.0,67714.0,0.00078245]
[1729254750293,0.41829215,67715.0,67714.0,0.00078245]
[1729254752035,0.269333,67715.0,67714.0,0.00078245]
[1729254754087,0.41829215,67715.0,67714.0,0.00078245]
[1729254755205,0.51679215,67715.0,67714.0,0.00078245]
[1729254755677,0.7846868,67715.0,67714.0,0.00078245]
[1729254755908,0.7432513,67715.0,67714.0,0.00078245]
[1729254757504,0.59429215,67715.0,67714.0,0.00078245]
[1729254757729,0.49429215,67715.0,67714.0,0.00078245]
[1729254758389,0.59429215,67715.0,67714.0,0.00078245]
[1729254775205,0.70981347,67715.0,67714.0,0.00078245]
[1729254783561,0.59429215,67715.0,67714.0,0.00078245]
[1729254783756,0.70981347,67715.0,67714.0,0.00078245]
[1729254787468,0.59429215,67715.0,67714.0,0.00078245]
[1729254787741,0.70981347,67715.0,67714.0,0.00078245]
[1729254788274,0.49579215,67715.0,67714.0,0.00078245]
[1729254788469,0.41829215,67715.0,67714.0,0.00078245]
[1729254788674,0.53381347,67715.0,67714.0,0.00078245]
[1729254793158,0.54327753,67715.0,67714.0,0.00078245]
[1729254793750,0.53381347,67715.0,67714.0,0.00078245]
[1729254795422,0.269333,67715.0,67714.0,0.00078245]
[1729254795626,0.021656,67715.0,67714.0,0.00078245]
[1729254795853,0.021656,67715.0,67714.0,0.28733963]
[1729254796059,0.021656,67715.0,67714.0,0.34638277]
[1729254796284,0.021656,67715.0,67714.0,0.32746145]
[1729254796799,0.021656,67715.0,67714.0,0.56331984]
[1729254796980,0.001656,67715.0,67714.0,0.45261129]
[1729254797626,0.015656,67715.0,67714.0,0.45261129]
[1729254797835,0.015656,67715.0,67714.0,0.56327539]
[1729254798052,0.015656,67715.0,67714.0,0.44775407]
[1729254798053,0.009656,67715.0,67714.0,0.44775407]
[1729254798259,0.010656,67715.0,67714.0,0.44775407]
[1729254798459,0.010656,67715.0,67714.0,0.43812555]
[1729254798682,0.010656,67715.0,67714.0,0.32746145]
[1729254798894,0.010656,67715.0,67714.0,0.33708095]
[1729254799136,0.002656,67715.0,67714.0,0.33708095]
[1729254799342,0.002656,67715.0,67714.0,0.33808095]
[1729254799621,0.002656,67715.0,67714.0,0.4486785]
[1729254800310,0.002656,67715.0,67714.0,0.56419982]
[1729254800541,0.002656,67715.0,67714.0,0.55458032]
[1729254800749,0.002656,67715.0,67714.0,0.56419982]
[1729254801384,0.002656,67715.0,67714.0,0.55458032]
[1729254801602,0.002656,67715.0,67714.0,0.45360227]
[1729254802243,0.002656,67715.0,67714.0,0.63056142]
[1729254802455,0.002656,67715.0,67714.0,0.75808274]
[1729254802692,0.002656,67715.0,67714.0,0.64256142]
[1729254803389,0.002656,67715.0,67714.0,0.75808274]
[1729254803619,0.002656,67715.0,67714.0,0.64256142]
[1729254803846,0.002656,67715.0,67714.0,0.64254507]
[1729254807158,0.002656,67715.0,67714.0,0.75806639]
[1729254807597,0.002656,67715.0,67714.0,0.7580555]
[1729254808022,0.001656,67715.0,67714.0,0.7580555]
[1729254808236,0.002656,67715.0,67714.0,0.7570555]
[1729254808700,0.002656,67715.0,67714.0,0.89069521]
[1729254808701,0.003656,67715.0,67714.0,0.89069521]
[1729254808913,0.002656,67715.0,67714.0,0.88969521]
[1729254809342,0.003656,67715.0,67714.0,0.89069521]
[1729254809812,0.003656,67715.0,67714.0,0.7580555]
[1729254810036,0.002656,67715.0,67714.0,0.7580555]
[1729254810245,0.003656,67715.0,67714.0,0.7600555]
[1729254811145,0.22297818,67725.0,67724.0,0.369458]
[1729254811146,0.001656,67725.0,67724.0,0.369458]
[1729254811359,0.001656,67725.0,67724.0,0.51841715]
[1729254811360,0.00141687,67725.0,67724.0,0.51841715]
[1729254811586,0.00141687,67725.0,67724.0,0.5280028]
[1729254811797,0.00141687,67725.0,67724.0,0.53021816]
[1729254812225,0.00141687,67725.0,67724.0,0.7612608]
[1729254812444,0.00241687,67725.0,67724.0,0.7672608]
[1729254813823,0.00241687,67725.0,67724.0,0.87731999]
[1729254814046,0.00241687,67725.0,67724.0,0.76179867]
[1729254814270,0.00341687,67725.0,67724.0,0.77479867]
[1729254814933,0.00341687,67725.0,67724.0,0.66472613]
[1729254815353,0.00341687,67725.0,67724.0,0.66472651]
[1729254815596,0.00341687,67725.0,67724.0,0.7747857]
[1729254815783,0.00341687,67725.0,67724.0,0.50006851]
[1729254816009,0.00341687,67725.0,67724.0,0.75367515]
[1729254816232,0.00341687,67725.0,67724.0,0.64772651]
[1729254816912,0.00341687,67725.0,67724.0,0.76324783]
[1729254819001,0.00341687,67725.0,67724.0,0.93236802]
[1729254819905,0.00341687,67725.0,67724.0,0.93224251]
[1729254820129,0.00341687,67725.0,67724.0,0.81672119]
[1729254820371,0.00341687,67725.0,67724.0,0.93224251]
[1729254821782,0.00341687,67725.0,67724.0,0.81672119]
[1729254822027,0.00341687,67725.0,67724.0,0.70678751]
[1729254822253,0.00341687,67725.0,67724.0,0.93220803]
[1729254822477,0.00341687,67725.0,67724.0,0.81668671]
[1729254823800,0.00341687,67725.0,67724.0,0.70678751]
[1729254824274,0.00341687,67725.0,67724.0,0.8166772]
[1729254824721,0.00341687,67725.0,67724.0,0.81668205]
[1729254825189,0.00341687,67725.0,67724.0,0.70678751]
[1729254825415,0.00341687,67725.0,67724.0,0.81667746]
[1729254825635,0.00341687,67725.0,67724.0,0.70678751]
[1729254826822,0.00341687,67725.0,67724.0,0.70680769]
[1729254827978,0.00341687,67725.0,67724.0,0.82232901]
[1729254830519,0.00341687,67725.0,67724.0,0.81273615]
[1729254830729,0.00341687,67725.0,67724.0,0.82233861]
[1729254832066,0.00341687,67725.0,67724.0,0.70681729]
[1729254833772,0.00341687,67725.0,67724.0,0.83872206]
[1729254834655,0.00341687,67725.0,67724.0,0.70682826]
[1729254837133,0.00341687,67725.0,67724.0,0.70765526]
[1729254837791,0.00341687,67725.0,67724.0,0.75368942]
[1729254838456,0.00341687,67725.0,67724.0,0.74407599]
[1729254838694,0.00341687,67725.0,67724.0,0.75370198]
[1729254838933,0.0492897,67738.0,67737.0,0.175629]
[1729254839172,0.0492897,67738.0,67737.0,0.45268771]
[1729254839399,0.41972218,67747.0,67738.0,0.005]
[1729254839627,0.001654,67739.0,67738.0,0.33421218]
[1729254841165,0.002654,67739.0,67738.0,0.34321218]
[1729254841371,0.002654,67739.0,67738.0,0.34421218]
[1729254841815,0.003654,67739.0,67738.0,0.35521218]
[1729254842411,0.002654,67739.0,67738.0,0.34521218]
[1729254842826,0.002654,67739.0,67738.0,0.35621218]
[1729254845181,0.002654,67739.0,67738.0,0.47173054]
[1729254845380,0.002654,67739.0,67738.0,0.51780876]
[1729254845580,0.002654,67739.0,67738.0,0.71331415]
[1729254845782,0.002654,67739.0,67738.0,0.51780876]
[1729254847847,0.002654,67739.0,67738.0,0.63333008]
[1729254848545,0.002654,67739.0,67738.0,0.64251796]
[1729254849287,0.002654,67739.0,67738.0,0.74251796]
[1729254849665,0.002654,67739.0,67738.0,0.91611796]
[1729254850099,0.03,67747.0,67746.0,0.59921]
[1729254850327,0.03,67747.0,67746.0,0.98883486]
[1729254850460,0.03,67747.0,67746.0,1.03486209]
[1729254851060,0.03,67747.0,67746.0,1.02523902]
[1729254851422,0.03,67747.0,67746.0,0.99321179]
[1729254851637,0.03,67747.0,67746.0,0.97921179]
[1729254852026,0.03,67747.0,67746.0,1.00282092]
[1729254852508,0.03,67747.0,67746.0,1.01682092]
[1729254853165,0.03,67747.0,67746.0,0.99321179]
[1729254853371,0.03,67747.0,67746.0,1.01682065]
[1729254854904,0.03,67747.0,67746.0,1.02594131]